[Event "44th Chess Olympiad Open 2022"]
[Site "Chennai"]
[Date "2022.07.30"]
[Round "2.62"]
[White "Rehan, Deng Cypriano"]
[Black "Kovacova, Zuzana"]
[Result "1-0"]
[WhiteElo "2105"]
[BlackElo "2050"]
[Annotator "NA"]
[PlyCount "77"]
[EventDate "2022.??.??"]
[TimeControl "60"]

1. c4 {[%emt 0:00:16]} e5 {[%emt 0:00:13]} 2. g3 {[%emt 0:00:11]} Nc6 {[%emt 0:
00:00]} 3. Bg2 {[%emt 0:00:10]} d6 {[%emt 0:00:12]} 4. Nc3 {[%emt 0:00:21]} Be6
{[%emt 0:00:23]} 5. d3 {[%emt 0:01:52]} g6 {[%emt 0:01:51]} 6. Nf3 {[%emt 0:00:
00]} h6 {[%emt 0:01:44]} 7. d4 {[%emt 0:12:08]} Bd7 {[%emt 0:02:38]} 8. d5 {
[%emt 0:08:19]} Nce7 {[%emt 0:01:01]} 9. c5 {[%emt 0:00:56]} Bg7 {[%emt 0:00:
00]} 10. cxd6 {[%emt 0:01:36]} cxd6 {[%emt 0:00:04]} 11. Qb3 {[%emt 0:01:07]}
Qb8 {[%emt 0:08:51]} 12. e4 {[%emt 0:01:20]} f5 {[%emt 0:01:39]} 13. O-O {
[%emt 0:01:57]} Nf6 {[%emt 0:01:10]} 14. Nd2 {[%emt 0:01:25]} b5 {[%emt 0:00:
00]} 15. a3 {[%emt 0:05:31]} O-O {[%emt 0:05:31]} 16. exf5 {[%emt 0:03:49]}
gxf5 {[%emt 0:00:38]} 17. Nf3 {[%emt 0:00:36]} Kh8 {[%emt 0:04:20]} 18. Nh4 {
[%emt 0:01:04]} Qe8 {[%emt 0:16:29]} 19. Bd2 {[%emt 0:07:44]} a5 {[%emt 0:00:
00]} 20. Rfe1 {[%emt 0:05:32]} Kh7 {[%emt 0:16:16]} 21. Rac1 {[%emt 0:04:54]}
Qb8 {[%emt 0:04:13]} 22. Ne2 {[%emt 0:02:33]} Rc8 {[%emt 0:03:29]} 23. Nd4 {
[%emt 0:03:29]} a4 {[%emt 0:03:46]} 24. Qd1 {[%emt 0:03:11]} e4 {[%emt 0:00:58]
} 25. Ne6 {[%emt 0:01:50]} Rxc1 {[%emt 0:01:31]} 26. Bxc1 {[%emt 0:00:27]} Bh8
{[%emt 0:00:23]} 27. Qd2 {[%emt 0:00:47]} Nfg8 {[%emt 0:01:35]} 28. Nxf5 {
[%emt 0:01:11]} Nxf5 {[%emt 0:00:20]} 29. Bxe4 {[%emt 0:00:15]} Bxe6 {[%emt 0:
00:00]} 30. dxe6 {[%emt 0:01:28]} Qf8 {[%emt 0:00:22]} 31. Qd5 {[%emt 0:01:27]}
Nge7 {[%emt 0:01:15]} 32. Qxa8 {[%emt 0:00:28]} Qxa8 {[%emt 0:00:20]} 33. Bxa8
{[%emt 0:00:11]} d5 {[%emt 0:00:42]} 34. Rd1 {[%emt 0:00:51]} Nd4 {[%emt 0:00:
00]} 35. Be3 {[%emt 0:01:42]} Nxe6 {[%emt 0:00:43]} 36. Bxd5 {[%emt 0:00:23]}
Nxd5 {[%emt 0:00:42]} 37. Rxd5 {[%emt 0:00:09]} Bxb2 {[%emt 0:00:02]} 38. Rxb5
{[%emt 0:00:17]} Bxa3 {[%emt 0:00:13]} 39. Ra5 {[%emt 0:00:21]} 1-0

[Event "44th Chess Olympiad Open 2022"]
[Site "Chennai"]
[Date "2022.07.30"]
[Round "2.62"]
[White "Faulks, Nick"]
[Black "Ajak Mach Duany"]
[Result "0-1"]
[WhiteElo "1820"]
[BlackElo "2029"]
[Annotator "NA RC"]
[PlyCount "90"]
[EventDate "2022.??.??"]
[TimeControl "60"]

1. c4 {[%emt 0:00:06]} e5 {[%emt 0:00:55]} 2. Nc3 {[%emt 0:00:11]} f5 {[%emt 0:
00:00]} 3. e3 {[%emt 0:02:43]} Nf6 {[%emt 0:03:27]} 4. g3 {[%emt 0:00:44]} Nc6
{[%emt 0:01:42]} 5. a3 {[%emt 0:04:22]} e4 {[%emt 0:05:24]} 6. f4 {[%emt 0:00:
00]} a5 {[%emt 0:10:30]} 7. Nh3 {[%emt 0:15:51]} Bc5 {[%emt 0:01:19]} 8. b3 {
[%emt 0:05:11]} Ne7 {[%emt 0:04:10]} 9. Bb2 {[%emt 0:02:10]} Ng6 {[%emt 0:00:
00]} 10. Nd5 {[%emt 0:06:46]} Nxd5 {[%emt 0:03:11]} 11. cxd5 {[%emt 0:00:15]}
Qe7 {[%emt 0:00:44]} 12. Qh5 {[%emt 0:05:12]} Qf8 {[%emt 0:11:02]} 13. Ng5 {
[%emt 0:03:19]} Be7 {[%emt 0:05:28]} 14. Nxh7 {[%emt 0:06:40]} Qf7 {[%emt 0:00:
00]} 15. d6 {[%emt 0:01:28]} cxd6 {[%emt 0:03:37]} 16. Bc4 {[%emt 0:00:28]} d5
{[%emt 0:02:55]} 17. Bxd5 {[%emt 0:00:21]} Qxd5 {[%emt 0:00:11]} 18. Qxg6+ {
[%emt 0:00:08]} Qf7 {[%emt 0:02:21]} 19. Qxf7+ {[%emt 0:00:34]} Kxf7 {[%emt 0:
00:00]} 20. Ng5+ {[%emt 0:00:07]} Kg6 {[%emt 0:01:55]} 21. h4 {[%emt 0:01:12]}
Ra6 {[%emt 0:04:19]} 22. Bc3 {[%emt 0:04:51]} b5 {[%emt 0:02:16]} 23. Kf2 {
[%emt 0:01:35]} b4 {[%emt 0:01:35]} 24. axb4 {[%emt 0:00:56]} axb4 {[%emt 0:00:
00]} 25. Rxa6+ {[%emt 0:13:46]} Bxa6 {[%emt 0:00:12]} 26. h5+ {[%emt 0:00:31]}
Rxh5 {[%emt 0:00:45]} 27. Rxh5 {[%emt 0:00:08]} Kxh5 {[%emt 0:00:07]} 28. Bxg7
{[%emt 0:00:20]} Bd3 {[%emt 0:00:50]} 29. Bd4 {[%emt 0:01:04]} Bc2 {[%emt 0:00:
00]} 30. Nf7 {[%emt 0:00:12]} Bxb3 {[%emt 0:00:44]} 31. Ne5 {[%emt 0:00:04]}
Ba4 {[%emt 0:01:20]} 32. Nc4 {[%emt 0:02:53]} Bb5 {[%emt 0:00:45]} 33. Nb2 {
[%emt 0:00:20]} d5 {[%emt 0:03:09]} 34. Be5 {[%emt 0:02:18]} Kg6 {[%emt 0:00:
00]} 35. Ke1 {[%emt 0:01:24]} b3 {[%emt 0:06:25]} 36. Bc3 {[%emt 0:01:05]} Bc5
{[%emt 0:02:51]} 37. Nd1 {[%emt 0:02:06]} Kf7 {[%emt 0:00:40]} 38. Nb2 {
[%emt 0:00:21]} Ke7 {[%emt 0:00:44]} 39. Nd1 {[%emt 0:01:09]} Kd6 {[%emt 0:00:
00]} 40. Nb2 {[%emt 0:00:28]} Bb6 {[%emt 0:00:18]} 41. Bb4+ {[%emt 0:31:00]}
Kc6 {[%emt 0:30:17]} 42. Bc3 {[%emt 0:02:49]} d4 {[%emt 0:00:38]} 43. exd4 {
[%emt 0:01:44]} Kd5 {[%emt 0:00:15]} 44. Nd1 {[%emt 0:00:00]} Bxd4 {[%emt 0:00:
00]} 45. Nb2 {[%emt 0:00:00]} e3 {[%emt 0:00:00]} 0-1

[Event "44th Chess Olympiad Open 2022"]
[Site "Chennai"]
[Date "2022.07.30"]
[Round "2.62"]
[White "Gontcharov, Dimitri"]
[Black "Peter Majur Manyang"]
[Result "0-1"]
[WhiteElo "1448"]
[BlackElo "2095"]
[Annotator "NA RC"]
[PlyCount "43"]
[EventDate "2022.??.??"]
[TimeControl "60"]

1. e4 {[%emt 0:00:01]} c5 {[%emt 0:00:08]} 2. Nf3 {[%emt 0:00:06]} a6 {[%emt 0:
00:00]} 3. d4 {[%emt 0:00:13]} cxd4 {[%emt 0:00:15]} 4. Nxd4 {[%emt 0:00:17]}
g6 {[%emt 0:00:03]} 5. Nc3 {[%emt 0:00:38]} Bg7 {[%emt 0:00:15]} 6. Be3 {
[%emt 0:00:41]} d6 {[%emt 0:03:40]} 7. Qd2 {[%emt 0:03:29]} Nc6 {[%emt 0:00:00]
} 8. Bc4 {[%emt 0:06:20]} Nf6 {[%emt 0:00:00]} 9. f3 {[%emt 0:00:30]} O-O {
[%emt 0:00:00]} 10. a3 {[%emt 0:00:30]} Qc7 {[%emt 0:00:00]} 11. Be2 {[%emt 0:
00:00]} b5 {[%emt 0:04:33]} 12. g4 {[%emt 0:23:09]} Bb7 {[%emt 0:00:47]} 13. h4
{[%emt 0:04:40]} Nxd4 {[%emt 0:00:11]} 14. Bxd4 {[%emt 0:00:30]} e5 {[%emt 0:
00:00]} 15. Be3 {[%emt 0:00:30]} d5 {[%emt 0:00:30]} 16. exd5 {[%emt 0:00:30]}
Rfd8 {[%emt 0:00:30]} 17. O-O-O {[%emt 0:00:30]} Qa5 {[%emt 0:00:30]} 18. Bg5 {
[%emt 0:00:30]} b4 {[%emt 0:00:30]} 19. Na2 {[%emt 0:00:30]} Bxd5 {[%emt 0:00:
00]} 20. Qxb4 {[%emt 0:00:30]} Qc7 {[%emt 0:00:30]} 21. Nc3 {[%emt 0:00:30]}
Rab8 {[%emt 0:00:30]} 22. Nxd5 {[%emt 0:00:30]} 0-1

[Event "44th Chess Olympiad Open 2022"]
[Site "Chennai"]
[Date "2022.07.30"]
[Round "2.63"]
[White "Abera, Aydagnuhem Gezachew"]
[Black "Winston Gerald, Mansfield Thomas"]
[Result "1-0"]
[WhiteElo "2137"]
[BlackElo "1832"]
[Annotator "NA"]
[PlyCount "128"]
[EventDate "2022.??.??"]
[TimeControl "60"]

1. e4 {[%emt 0:00:11]} d6 {[%emt 0:00:09]} 2. d4 {[%emt 0:00:12]} Nf6 {[%emt 0:
00:00]} 3. Nc3 {[%emt 0:00:14]} c6 {[%emt 0:00:11]} 4. Nf3 {[%emt 0:00:11]} Bg4
{[%emt 0:00:28]} 5. Bc4 {[%emt 0:00:27]} Nbd7 {[%emt 0:00:56]} 6. Bf4 {[%emt 0:
00:00]} Qa5 {[%emt 0:09:31]} 7. Qd2 {[%emt 0:03:58]} e5 {[%emt 0:03:47]} 8. Be3
{[%emt 0:03:53]} b5 {[%emt 0:01:49]} 9. Bd3 {[%emt 0:01:44]} a6 {[%emt 0:01:09]
} 10. O-O {[%emt 0:03:29]} Qc7 {[%emt 0:02:09]} 11. h3 {[%emt 0:04:53]} Bh5 {
[%emt 0:00:30]} 12. Nh4 {[%emt 0:04:16]} Bg6 {[%emt 0:00:41]} 13. a3 {[%emt 0:
00:00]} Be7 {[%emt 0:00:24]} 14. Nf5 {[%emt 0:04:22]} Bxf5 {[%emt 0:00:28]} 15.
exf5 {[%emt 0:00:09]} O-O {[%emt 0:01:40]} 16. g4 {[%emt 0:01:57]} exd4 {
[%emt 0:04:44]} 17. Bxd4 {[%emt 0:00:33]} Ne5 {[%emt 0:00:49]} 18. Be2 {
[%emt 0:02:23]} Rfe8 {[%emt 0:03:30]} 19. f4 {[%emt 0:01:35]} Nc4 {[%emt 0:00:
00]} 20. Qc1 {[%emt 0:02:49]} Nd5 {[%emt 0:01:29]} 21. Nxd5 {[%emt 0:03:37]}
cxd5 {[%emt 0:00:06]} 22. Bf3 {[%emt 0:03:07]} Qc6 {[%emt 0:00:12]} 23. b3 {
[%emt 0:01:14]} Nb6 {[%emt 0:00:25]} 24. Qd2 {[%emt 0:01:19]} Rac8 {[%emt 0:00:
00]} 25. Rac1 {[%emt 0:02:32]} Bf6 {[%emt 0:00:32]} 26. Bxf6 {[%emt 0:02:47]}
gxf6 {[%emt 0:00:06]} 27. Qd4 {[%emt 0:03:34]} Qc5 {[%emt 0:00:21]} 28. Qxc5 {
[%emt 0:03:08]} dxc5 {[%emt 0:00:28]} 29. Kf2 {[%emt 0:00:56]} Rcd8 {[%emt 0:
00:00]} 30. Rfe1 {[%emt 0:00:52]} Kf8 {[%emt 0:02:46]} 31. h4 {[%emt 0:01:47]}
a5 {[%emt 0:00:52]} 32. g5 {[%emt 0:01:27]} Rxe1 {[%emt 0:00:22]} 33. Rxe1 {
[%emt 0:00:17]} Rd6 {[%emt 0:01:29]} 34. h5 {[%emt 0:00:47]} c4 {[%emt 0:03:19]
} 35. h6 {[%emt 0:01:02]} fxg5 {[%emt 0:06:11]} 36. fxg5 {[%emt 0:00:39]} d4 {
[%emt 0:01:30]} 37. Re5 {[%emt 0:03:59]} d3 {[%emt 0:02:23]} 38. cxd3 {[%emt 0:
00:00]} cxb3 {[%emt 0:00:24]} 39. Rxb5 {[%emt 0:01:51]} a4 {[%emt 0:00:41]} 40.
Be4 {[%emt 0:00:42]} Nd7 {[%emt 0:02:20]} 41. Ke3 {[%emt 0:30:56]} Rb6 {
[%emt 0:30:37]} 42. Rxb6 {[%emt 0:02:40]} Nxb6 {[%emt 0:00:05]} 43. Kd2 {
[%emt 0:00:09]} Nc8 {[%emt 0:00:55]} 44. d4 {[%emt 0:01:23]} Nd6 {[%emt 0:00:
00]} 45. Bd3 {[%emt 0:00:09]} Nc8 {[%emt 0:03:16]} 46. Kc3 {[%emt 0:01:53]} Nb6
{[%emt 0:00:21]} 47. Be4 {[%emt 0:01:28]} Kg8 {[%emt 0:02:29]} 48. Kb4 {
[%emt 0:00:48]} Kf8 {[%emt 0:00:35]} 49. Kb5 {[%emt 0:00:34]} Nc8 {[%emt 0:00:
00]} 50. Kxa4 {[%emt 0:00:33]} Nd6 {[%emt 0:00:05]} 51. Bd3 {[%emt 0:00:14]} b2
{[%emt 0:01:56]} 52. Kb3 {[%emt 0:00:00]} Nb5 {[%emt 0:00:29]} 53. d5 {[%emt 0:
00:00]} Nd4+ {[%emt 0:02:02]} 54. Kxb2 {[%emt 0:00:19]} Nf3 {[%emt 0:00:32]}
55. a4 {[%emt 0:01:54]} Nxg5 {[%emt 0:02:37]} 56. a5 {[%emt 0:00:00]} Nf3 {
[%emt 0:00:54]} 57. a6 {[%emt 0:00:00]} Ne5 {[%emt 0:00:11]} 58. Bb5 {[%emt 0:
00:00]} Ke7 {[%emt 0:03:08]} 59. a7 {[%emt 0:00:00]} Kf6 {[%emt 0:00:41]} 60.
a8=Q {[%emt 0:00:22]} Kxf5 {[%emt 0:00:33]} 61. d6 {[%emt 0:01:03]} Kg6 {
[%emt 0:00:07]} 62. Qe4+ {[%emt 0:00:24]} Kf6 {[%emt 0:00:26]} 63. Qxh7 {
[%emt 0:00:39]} Ke6 {[%emt 0:00:10]} 64. d7 {[%emt 0:00:51]} Kd5 {[%emt 0:00:
00]} 1-0

[Event "44th Chess Olympiad Open 2022"]
[Site "Chennai"]
[Date "2022.07.30"]
[Round "2.63"]
[White "Badene, Habtamu Bayu"]
[Black "Adeshole Beckley, Brian"]
[Result "1/2-1/2"]
[WhiteElo "2011"]
[BlackElo "1590"]
[Annotator "NA"]
[PlyCount "107"]
[EventDate "2022.??.??"]
[TimeControl "60"]

1. e4 {[%emt 0:00:04]} e6 {[%emt 0:00:09]} 2. d4 {[%emt 0:00:17]} d5 {[%emt 0:
00:00]} 3. Nc3 {[%emt 0:00:19]} Nf6 {[%emt 0:00:11]} 4. Bg5 {[%emt 0:01:06]}
Be7 {[%emt 0:00:14]} 5. e5 {[%emt 0:00:56]} Nfd7 {[%emt 0:00:07]} 6. h4 {
[%emt 0:00:52]} Nc6 {[%emt 0:00:30]} 7. a3 {[%emt 0:01:06]} h6 {[%emt 0:00:42]}
8. Bxe7 {[%emt 0:01:21]} Nxe7 {[%emt 0:00:08]} 9. Bd3 {[%emt 0:03:32]} a6 {
[%emt 0:01:59]} 10. b4 {[%emt 0:06:47]} a5 {[%emt 0:01:01]} 11. Nge2 {[%emt 0:
00:00]} b6 {[%emt 0:03:23]} 12. b5 {[%emt 0:02:30]} c5 {[%emt 0:02:10]} 13.
bxc6 {[%emt 0:01:38]} Nxc6 {[%emt 0:00:15]} 14. Nb5 {[%emt 0:01:21]} O-O {
[%emt 0:00:19]} 15. c3 {[%emt 0:01:24]} Ba6 {[%emt 0:02:29]} 16. Nd6 {[%emt 0:
00:00]} Bxd3 {[%emt 0:00:48]} 17. Qxd3 {[%emt 0:01:15]} Ndxe5 {[%emt 0:00:20]}
18. dxe5 {[%emt 0:01:07]} Nxe5 {[%emt 0:00:13]} 19. Qg3 {[%emt 0:01:53]} Qxd6 {
[%emt 0:00:43]} 20. O-O {[%emt 0:00:29]} Nc4 {[%emt 0:01:16]} 21. Qxd6 {
[%emt 0:00:46]} Nxd6 {[%emt 0:00:07]} 22. Rfb1 {[%emt 0:01:46]} Nc4 {[%emt 0:
00:00]} 23. a4 {[%emt 0:01:04]} Rfc8 {[%emt 0:02:08]} 24. f3 {[%emt 0:10:44]}
Rab8 {[%emt 0:02:19]} 25. Kf2 {[%emt 0:04:19]} Nd6 {[%emt 0:05:35]} 26. Ke1 {
[%emt 0:07:12]} b5 {[%emt 0:06:44]} 27. axb5 {[%emt 0:04:42]} Rxb5 {[%emt 0:00:
00]} 28. Rxb5 {[%emt 0:01:11]} Nxb5 {[%emt 0:00:07]} 29. Kd2 {[%emt 0:00:40]}
Ra8 {[%emt 0:00:33]} 30. Ra4 {[%emt 0:02:31]} Nd6 {[%emt 0:01:29]} 31. Kd3 {
[%emt 0:00:52]} Nc4 {[%emt 0:00:34]} 32. Kd4 {[%emt 0:02:23]} Rc8 {[%emt 0:00:
00]} 33. Ra2 {[%emt 0:01:03]} a4 {[%emt 0:01:37]} 34. Nc1 {[%emt 0:06:16]} a3 {
[%emt 0:01:13]} 35. Nd3 {[%emt 0:02:06]} Kf8 {[%emt 0:02:56]} 36. Nb4 {[%emt 0:
00:00]} Ke7 {[%emt 0:00:57]} 37. Nc2 {[%emt 0:02:02]} Kd6 {[%emt 0:00:21]} 38.
Nxa3 {[%emt 0:02:07]} e5+ {[%emt 0:01:27]} 39. Kd3 {[%emt 0:00:35]} Nxa3 {
[%emt 0:02:58]} 40. Rxa3 {[%emt 0:00:09]} Rc4 {[%emt 0:00:44]} 41. Ra6+ {
[%emt 0:31:12]} Ke7 {[%emt 0:30:08]} 42. Ra5 {[%emt 0:03:52]} Ke6 {[%emt 0:00:
00]} 43. Ra6+ {[%emt 0:00:23]} Kf5 {[%emt 0:01:50]} 44. Ra5 {[%emt 0:00:13]}
Rxh4 {[%emt 0:08:22]} 45. Rxd5 {[%emt 0:00:54]} Rh2 {[%emt 0:00:52]} 46. g4+ {
[%emt 0:04:23]} Kf4 {[%emt 0:01:02]} 47. Rd7 {[%emt 0:00:26]} f6 {[%emt 0:00:
00]} 48. Rxg7 {[%emt 0:00:48]} Kxf3 {[%emt 0:00:15]} 49. Rf7 {[%emt 0:00:27]}
e4+ {[%emt 0:00:29]} 50. Kc4 {[%emt 0:00:46]} Kxg4 {[%emt 0:01:36]} 51. Rxf6 {
[%emt 0:00:18]} e3 {[%emt 0:01:16]} 52. Kd3 {[%emt 0:01:07]} e2 {[%emt 0:01:21]
} 53. Kd2 {[%emt 0:00:26]} Kg3 {[%emt 0:02:20]} 54. Ke1 {[%emt 0:01:45]}
1/2-1/2

[Event "44th Chess Olympiad Open 2022"]
[Site "Chennai"]
[Date "2022.07.30"]
[Round "2.63"]
[White "Kamara, Ansumana"]
[Black "Jimma, Desalegn Fekadu"]
[Result "0-1"]
[WhiteElo "1896"]
[BlackElo "2112"]
[Annotator "NA RC"]
[PlyCount "134"]
[EventDate "2022.??.??"]
[TimeControl "60"]

1. e4 {[%emt 0:00:12]} c5 {[%emt 0:00:07]} 2. Nf3 {[%emt 0:00:08]} d6 {[%emt 0:
00:00]} 3. d4 {[%emt 0:00:06]} cxd4 {[%emt 0:00:07]} 4. Nxd4 {[%emt 0:00:07]}
Nf6 {[%emt 0:00:11]} 5. Nc3 {[%emt 0:00:11]} a6 {[%emt 0:00:09]} 6. Be3 {
[%emt 0:00:14]} e6 {[%emt 0:00:27]} 7. f3 {[%emt 0:00:15]} Nbd7 {[%emt 0:02:20]
} 8. Qd2 {[%emt 0:00:26]} b5 {[%emt 0:00:45]} 9. g4 {[%emt 0:02:43]} Bb7 {
[%emt 0:00:49]} 10. O-O-O {[%emt 0:04:08]} b4 {[%emt 0:02:07]} 11. Na4 {
[%emt 0:01:19]} d5 {[%emt 0:01:59]} 12. g5 {[%emt 0:01:38]} Nh5 {[%emt 0:01:28]
} 13. exd5 {[%emt 0:01:14]} Bxd5 {[%emt 0:00:47]} 14. Be2 {[%emt 0:02:13]} g6 {
[%emt 0:02:38]} 15. Kb1 {[%emt 0:01:23]} Be7 {[%emt 0:03:02]} 16. Rhf1 {
[%emt 0:00:54]} O-O {[%emt 0:16:53]} 17. f4 {[%emt 0:02:05]} Ng7 {[%emt 0:00:
00]} 18. f5 {[%emt 0:03:24]} gxf5 {[%emt 0:10:46]} 19. Nxf5 {[%emt 0:00:13]}
Nxf5 {[%emt 0:01:17]} 20. Rxf5 {[%emt 0:00:08]} Bc6 {[%emt 0:00:52]} 21. Bf3 {
[%emt 0:03:15]} Bxa4 {[%emt 0:00:58]} 22. Rf4 {[%emt 0:01:59]} Rc8 {[%emt 0:00:
00]} 23. b3 {[%emt 0:00:12]} Bb5 {[%emt 0:01:29]} 24. Rh4 {[%emt 0:00:26]} Ne5
{[%emt 0:06:27]} 25. Qg2 {[%emt 0:02:50]} Qc7 {[%emt 0:04:28]} 26. Be4 {
[%emt 0:00:45]} Ng6 {[%emt 0:02:01]} 27. Qh3 {[%emt 0:18:14]} Nxh4 {[%emt 0:00:
00]} 28. Qxh4 {[%emt 0:00:41]} f5 {[%emt 0:00:30]} 29. gxf6 {[%emt 0:01:12]}
Bxf6 {[%emt 0:00:04]} 30. Rg1+ {[%emt 0:00:59]} Kh8 {[%emt 0:02:14]} 31. Qh3 {
[%emt 0:17:42]} Rg8 {[%emt 0:03:30]} 32. Rd1 {[%emt 0:06:29]} Rce8 {[%emt 0:00:
00]} 33. Bb6 {[%emt 0:06:10]} Qg7 {[%emt 0:00:54]} 34. Bc5 {[%emt 0:06:09]} Ba1
{[%emt 0:04:49]} 35. c3 {[%emt 0:00:44]} Bxc3 {[%emt 0:00:19]} 36. a3 {[%emt 0:
00:00]} Rd8 {[%emt 0:02:41]} 37. Rc1 {[%emt 0:01:03]} Ba1 {[%emt 0:01:23]} 38.
Qxh7+ {[%emt 0:04:53]} Qxh7 {[%emt 0:00:25]} 39. Bxh7 {[%emt 0:00:08]} Kxh7 {
[%emt 0:00:38]} 40. Kxa1 {[%emt 0:00:11]} bxa3 {[%emt 0:00:28]} 41. Bxa3 {
[%emt 0:30:21]} Rd2 {[%emt 0:30:32]} 42. Rc7+ {[%emt 0:00:55]} Kh6 {[%emt 0:00:
00]} 43. Bc1 {[%emt 0:00:36]} Rg1 {[%emt 0:00:20]} 44. Rc2 {[%emt 0:00:30]}
Rxc1+ {[%emt 0:00:59]} 45. Rxc1 {[%emt 0:00:08]} Rxh2 {[%emt 0:00:14]} 46. Re1
{[%emt 0:00:42]} Re2 {[%emt 0:00:07]} 47. Rg1 {[%emt 0:01:12]} e5 {[%emt 0:00:
00]} 48. Kb1 {[%emt 0:00:17]} e4 {[%emt 0:00:14]} 49. Kc1 {[%emt 0:00:24]} e3 {
[%emt 0:00:30]} 50. Rg3 {[%emt 0:00:55]} Re1+ {[%emt 0:00:54]} 51. Kc2 {
[%emt 0:02:34]} e2 {[%emt 0:00:00]} 52. Re3 {[%emt 0:01:53]} Rd1 {[%emt 0:00:
00]} 53. Kc3 {[%emt 0:02:58]} e1=Q+ {[%emt 0:00:17]} 54. Rxe1 {[%emt 0:00:11]}
Rxe1 {[%emt 0:00:11]} 55. Kb4 {[%emt 0:00:39]} Re4+ {[%emt 0:00:16]} 56. Ka3 {
[%emt 0:00:15]} a5 {[%emt 0:00:10]} 57. Kb2 {[%emt 0:00:15]} Kg5 {[%emt 0:00:
00]} 58. Ka3 {[%emt 0:00:21]} Re2 {[%emt 0:00:16]} 59. b4 {[%emt 0:00:17]} Re3+
{[%emt 0:00:07]} 60. Kb2 {[%emt 0:00:12]} axb4 {[%emt 0:00:12]} 61. Ka2 {
[%emt 0:01:32]} Bc4+ {[%emt 0:00:17]} 62. Kb2 {[%emt 0:00:20]} Re2+ {[%emt 0:
00:00]} 63. Ka1 {[%emt 0:00:46]} b3 {[%emt 0:00:12]} 64. Kb1 {[%emt 0:00:20]}
Bd3+ {[%emt 0:00:09]} 65. Ka1 {[%emt 0:00:17]} b2+ {[%emt 0:00:09]} 66. Ka2 {
[%emt 0:00:08]} b1=Q+ {[%emt 0:00:19]} 67. Ka3 {[%emt 0:00:09]} Ra2# {[%emt 0:
00:00]} 0-1

[Event "44th Chess Olympiad Open 2022"]
[Site "Chennai"]
[Date "2022.07.30"]
[Round "2.63"]
[White "Lwebuga, Ronald"]
[Black "Tsige, Addisalem Temesgen"]
[Result "1/2-1/2"]
[WhiteElo "1818"]
[BlackElo "2072"]
[Annotator "NA RC"]
[PlyCount "124"]
[EventDate "2022.??.??"]
[TimeControl "60"]

1. Nf3 {[%emt 0:00:04]} c5 {[%emt 0:00:33]} 2. c4 {[%emt 0:00:16]} Nc6 {
[%emt 0:00:11]} 3. g3 {[%emt 0:00:12]} g6 {[%emt 0:00:08]} 4. d4 {[%emt 0:00:
00]} cxd4 {[%emt 0:00:10]} 5. Nxd4 {[%emt 0:00:07]} Bg7 {[%emt 0:00:12]} 6.
Nxc6 {[%emt 0:00:28]} bxc6 {[%emt 0:00:15]} 7. Nc3 {[%emt 0:00:28]} Nf6 {
[%emt 0:00:08]} 8. Bg2 {[%emt 0:00:10]} O-O {[%emt 0:00:04]} 9. O-O {[%emt 0:
00:00]} Qa5 {[%emt 0:00:11]} 10. Bd2 {[%emt 0:00:26]} Rb8 {[%emt 0:01:28]} 11.
Qc2 {[%emt 0:00:25]} Qc7 {[%emt 0:04:20]} 12. Rac1 {[%emt 0:03:06]} Rd8 {
[%emt 0:01:10]} 13. e4 {[%emt 0:00:18]} Ba6 {[%emt 0:00:45]} 14. b3 {[%emt 0:
00:00]} d5 {[%emt 0:05:58]} 15. exd5 {[%emt 0:01:57]} cxd5 {[%emt 0:00:15]} 16.
Nxd5 {[%emt 0:05:57]} Nxd5 {[%emt 0:00:23]} 17. Bxd5 {[%emt 0:00:29]} Bd4 {
[%emt 0:10:47]} 18. Rfe1 {[%emt 0:09:12]} Rbc8 {[%emt 0:02:52]} 19. Bg2 {
[%emt 0:01:12]} h5 {[%emt 0:00:33]} 20. Bg5 {[%emt 0:05:06]} Re8 {[%emt 0:00:
00]} 21. Rcd1 {[%emt 0:01:12]} e5 {[%emt 0:03:45]} 22. Bd5 {[%emt 0:02:14]} Qd6
{[%emt 0:02:18]} 23. Qe4 {[%emt 0:04:03]} Kg7 {[%emt 0:01:33]} 24. Qf3 {
[%emt 0:05:06]} f6 {[%emt 0:05:07]} 25. Be3 {[%emt 0:01:01]} Bxe3 {[%emt 0:00:
00]} 26. Qxe3 {[%emt 0:00:31]} Qc7 {[%emt 0:00:17]} 27. Rd2 {[%emt 0:02:57]}
Re7 {[%emt 0:00:32]} 28. Red1 {[%emt 0:01:25]} Rd8 {[%emt 0:01:25]} 29. Bf3 {
[%emt 0:10:20]} Rxd2 {[%emt 0:06:39]} 30. Qxd2 {[%emt 0:03:52]} e4 {[%emt 0:00:
00]} 31. Bg2 {[%emt 0:00:17]} Bc8 {[%emt 0:01:00]} 32. Qd8 {[%emt 0:06:17]} Qb7
{[%emt 0:03:10]} 33. Qd5 {[%emt 0:08:00]} Qc7 {[%emt 0:04:57]} 34. Re1 {
[%emt 0:06:17]} Bb7 {[%emt 0:01:37]} 35. Qd4 {[%emt 0:00:32]} Qa5 {[%emt 0:00:
00]} 36. Re2 {[%emt 0:00:46]} Qe5 {[%emt 0:08:55]} 37. Qxe5 {[%emt 0:05:41]}
Rxe5 {[%emt 0:00:24]} 38. Rd2 {[%emt 0:00:58]} Re7 {[%emt 0:00:35]} 39. Kf1 {
[%emt 0:01:36]} f5 {[%emt 0:00:34]} 40. h4 {[%emt 0:00:31]} Kf7 {[%emt 0:00:36]
} 41. c5 {[%emt 0:30:23]} Rc7 {[%emt 0:34:36]} 42. b4 {[%emt 0:00:13]} Ba6+ {
[%emt 0:00:42]} 43. Ke1 {[%emt 0:00:31]} Bb7 {[%emt 0:00:43]} 44. Bf1 {[%emt 0:
00:00]} Bc8 {[%emt 0:01:31]} 45. Bc4+ {[%emt 0:00:16]} Kf6 {[%emt 0:00:50]} 46.
Ke2 {[%emt 0:01:49]} Ke5 {[%emt 0:04:35]} 47. Rd5+ {[%emt 0:00:31]} Kf6 {
[%emt 0:00:02]} 48. Rd6+ {[%emt 0:00:38]} Ke5 {[%emt 0:01:38]} 49. Ke3 {
[%emt 0:00:35]} Rg7 {[%emt 0:00:38]} 50. Rd5+ {[%emt 0:00:48]} Kf6 {[%emt 0:00:
00]} 51. Kf4 {[%emt 0:00:41]} Re7 {[%emt 0:02:54]} 52. b5 {[%emt 0:01:26]} e3 {
[%emt 0:00:35]} 53. Rd6+ {[%emt 0:02:32]} Kg7 {[%emt 0:00:24]} 54. Kf3 {
[%emt 0:00:59]} f4 {[%emt 0:00:55]} 55. fxe3 {[%emt 0:03:14]} fxe3 {[%emt 0:00:
00]} 56. Ke2 {[%emt 0:02:02]} Bg4+ {[%emt 0:00:34]} 57. Ke1 {[%emt 0:00:28]}
Re5 {[%emt 0:03:44]} 58. c6 {[%emt 0:03:28]} Rc5 {[%emt 0:01:05]} 59. Rd4 {
[%emt 0:00:36]} Kf6 {[%emt 0:00:29]} 60. a4 {[%emt 0:02:35]} Ke5 {[%emt 0:00:
00]} 61. Rf4 {[%emt 0:00:49]} a5 {[%emt 0:00:00]} 62. Kf1 {[%emt 0:00:00]} Kd6
{[%emt 0:00:00]} 1/2-1/2